Workbook

Sheet Warmteverliesberekening
B2: Berekening uitgevoerd door: | C2: Firmanaam: | D2: X | E2: Naam: | F2: X | G2: Handtekening:
A4: Resultaten warmteverliesberekening volgens NBN EN 12831 | F4: Controle afgiftevermogens en retourtemperatuur
B5: Gemeente: | C5: Beringen | D5: θe (°C): | E5: -9 | F5: Totaal warmteverlies (kW) | H5: Vertrektemperatuur (°C)
B6: type gebouw: | C6: residentieel | D6: gebouwmassa: | E6: gemiddeld | F6: =SUM(E12:E10002)/1000 -> 11.15255781 | H6: =IF(MAX(vertrek)=0,"",MAX(vertrek)) -> 55
B7: opwarmtijd (h): | C7: 2u | D7: nachtverlaging (°C): | E7: 2 | F7: Totaal afgiftevermogen (kW) | H7: Retourtemperatuur (°C)
B8: warmterecuperatie (% EN308): | C8: 0.85 | D8: lekdebiet (n50): | E8: 1.5 | F8: =SUM(H12:H10002)/1000 -> 11.29988726 | H8: =IFERROR(IF(SUMPRODUCT(retour,debiet)/SUM(debiet)=0,"",SUMPRODUCT(retour,debiet)/SUM(debiet)),"") -> 45
H9: =IF(AND(I12:I83,F8>F6,'Kringen en luchtgroepen'!X5:X12,'Selectie afgifte-elementen'!BG10:BG81),OK,NOK) -> 
A10: Lokaal nr | B10: Naam lokaal | C10: Oppervlakte | D10: Ruimte-temperatuur | E10: Berekend warmteverlies lokaal | F10: vermogen per m² | G10: Uitzondering van toepassing | H10: Totaal voorzien afgiftevermogen
A12: 1 | B12: Living+keuken | C12: 56.4 | D12: 20 | E12: 4174.622856 | F12: =IFERROR(E12/C12,0) -> 74.01813574 | H12: =SUMIFS('Selectie afgifte-elementen'!H:H,'Selectie afgifte-elementen'!A:A,Warmteverliesberekening!A12,'Selectie afgifte-elementen'!B:B,Warmteverliesberekening!B12) -> 5019.497178 | I12: =IF(E12="","",OR(H12>E12,G12<>"")) -> TRUE
A13: 2 | B13: Sas achterdeur | C13: 3.25 | D13: 16 | E13: 141.9576025 | F13: =IFERROR(E13/C13,0) -> 43.67926231 | G13: lokaal niet voor menselijke bezetting | H13: =SUMIFS('Selectie afgifte-elementen'!H:H,'Selectie afgifte-elementen'!A:A,Warmteverliesberekening!A13,'Selectie afgifte-elementen'!B:B,Warmteverliesberekening!B13) -> 0 | I13: =IF(E13="","",OR(H13>E13,G13<>"")) -> TRUE
A14: 3 | B14: Wasplaats | C14: 9.75 | D14: 20 | E14: 544.078225 | F14: 55.80289487 | H14: =SUMIFS('Selectie afgifte-elementen'!H:H,'Selectie afgifte-elementen'!A:A,Warmteverliesberekening!A14,'Selectie afgifte-elementen'!B:B,Warmteverliesberekening!B14) -> 654.040404 | I14: TRUE
A15: 4 | B15: Berging | C15: 4.515 | D15: 16 | E15: 218.02275 | F15: 48.28853821 | G15: lokaal niet voor menselijke bezetting | H15: =SUMIFS('Selectie afgifte-elementen'!H:H,'Selectie afgifte-elementen'!A:A,Warmteverliesberekening!A15,'Selectie afgifte-elementen'!B:B,Warmteverliesberekening!B15) -> 0 | I15: TRUE
A16: 5 | B16: WC | C16: 2 | D16: 16 | E16: 51.104875 | F16: 25.5524375 | G16: lokaal niet voor menselijke bezetting | H16: =SUMIFS('Selectie afgifte-elementen'!H:H,'Selectie afgifte-elementen'!A:A,Warmteverliesberekening!A16,'Selectie afgifte-elementen'!B:B,Warmteverliesberekening!B16) -> 0 | I16: TRUE
A17: 6 | B17: Inkomhal + trap | C17: 9.75 | D17: 16 | E17: 496.4503125 | F17: 50.91798077 | G17: lokaal niet voor menselijke bezetting | H17: =SUMIFS('Selectie afgifte-elementen'!H:H,'Selectie afgifte-elementen'!A:A,Warmteverliesberekening!A17,'Selectie afgifte-elementen'!B:B,Warmteverliesberekening!B17) -> 0 | I17: TRUE
A18: 7 | B18: Gang (1V) + trap | C18: 23.05 | D18: 16 | E18: 698.25075 | F18: 30.29287419 | G18: lokaal niet voor menselijke bezetting | H18: =SUMIFS('Selectie afgifte-elementen'!H:H,'Selectie afgifte-elementen'!A:A,Warmteverliesberekening!A18,'Selectie afgifte-elementen'!B:B,Warmteverliesberekening!B18) -> 0 | I18: TRUE
A19: 8 | B19: Badkamer | C19: 13.325 | D19: 24 | E19: 792.4863085 | F19: 59.47364417 | H19: =SUMIFS('Selectie afgifte-elementen'!H:H,'Selectie afgifte-elementen'!A:A,Warmteverliesberekening!A19,'Selectie afgifte-elementen'!B:B,Warmteverliesberekening!B19) -> 848.4848485 | I19: TRUE
A20: 9 | B20: Slaapkamer achter | C20: 15.99 | D20: 18 | E20: 508.5079828 | F20: 31.80162494 | H20: =SUMIFS('Selectie afgifte-elementen'!H:H,'Selectie afgifte-elementen'!A:A,Warmteverliesberekening!A20,'Selectie afgifte-elementen'!B:B,Warmteverliesberekening!B20) -> 580.8853951 | I20: TRUE
A21: 10 | B21: Bureau | C21: 8.2 | D21: 20 | E21: 453.746798 | F21: 55.33497537 | H21: =SUMIFS('Selectie afgifte-elementen'!H:H,'Selectie afgifte-elementen'!A:A,Warmteverliesberekening!A21,'Selectie afgifte-elementen'!B:B,Warmteverliesberekening!B21) -> 489.7540984 | I21: TRUE
A22: 11 | B22: Slaapkamer voor (zuid) | C22: 12.095 | D22: 18 | E22: 501.6236184 | F22: 41.47363525 | H22: =SUMIFS('Selectie afgifte-elementen'!H:H,'Selectie afgifte-elementen'!A:A,Warmteverliesberekening!A22,'Selectie afgifte-elementen'!B:B,Warmteverliesberekening!B22) -> 580.8853951 | I22: TRUE
A23: 12 | B23: Slaapkamer voor (noord) | C23: 12.095 | D23: 18 | E23: 470.5698684 | F23: 38.90614869 | H23: =SUMIFS('Selectie afgifte-elementen'!H:H,'Selectie afgifte-elementen'!A:A,Warmteverliesberekening!A23,'Selectie afgifte-elementen'!B:B,Warmteverliesberekening!B23) -> 580.8853951 | I23: TRUE
A24: 13 | B24: Zolder + trap | C24: 55 | D24: 16 | E24: 2007.555855 | F24: 36.50101555 | H24: =SUMIFS('Selectie afgifte-elementen'!H:H,'Selectie afgifte-elementen'!A:A,Warmteverliesberekening!A24,'Selectie afgifte-elementen'!B:B,Warmteverliesberekening!B24) -> 2545.454545 | I24: TRUE
A25: 14 | B25: Technische ruimte | C25: 13.325 | D25: 10 | E25: 93.5800125 | F25: 7.022890244 | G25: vermogen < 10W/m² | H25: =SUMIFS('Selectie afgifte-elementen'!H:H,'Selectie afgifte-elementen'!A:A,Warmteverliesberekening!A25,'Selectie afgifte-elementen'!B:B,Warmteverliesberekening!B25) -> 0 | I25: TRUE
F26: 0 | H26: =SUMIFS('Selectie afgifte-elementen'!H:H,'Selectie afgifte-elementen'!A:A,Warmteverliesberekening!A26,'Selectie afgifte-elementen'!B:B,Warmteverliesberekening!B26) -> 0
F27: 0 | H27: =SUMIFS('Selectie afgifte-elementen'!H:H,'Selectie afgifte-elementen'!A:A,Warmteverliesberekening!A27,'Selectie afgifte-elementen'!B:B,Warmteverliesberekening!B27) -> 0
F28: 0 | H28: =SUMIFS('Selectie afgifte-elementen'!H:H,'Selectie afgifte-elementen'!A:A,Warmteverliesberekening!A28,'Selectie afgifte-elementen'!B:B,Warmteverliesberekening!B28) -> 0
F29: 0 | H29: =SUMIFS('Selectie afgifte-elementen'!H:H,'Selectie afgifte-elementen'!A:A,Warmteverliesberekening!A29,'Selectie afgifte-elementen'!B:B,Warmteverliesberekening!B29) -> 0
F30: 0 | H30: =SUMIFS('Selectie afgifte-elementen'!H:H,'Selectie afgifte-elementen'!A:A,Warmteverliesberekening!A30,'Selectie afgifte-elementen'!B:B,Warmteverliesberekening!B30) -> 0
F31: 0 | H31: =SUMIFS('Selectie afgifte-elementen'!H:H,'Selectie afgifte-elementen'!A:A,Warmteverliesberekening!A31,'Selectie afgifte-elementen'!B:B,Warmteverliesberekening!B31) -> 0
F32: 0 | H32: =SUMIFS('Selectie afgifte-elementen'!H:H,'Selectie afgifte-elementen'!A:A,Warmteverliesberekening!A32,'Selectie afgifte-elementen'!B:B,Warmteverliesberekening!B32) -> 0
F33: 0 | H33: =SUMIFS('Selectie afgifte-elementen'!H:H,'Selectie afgifte-elementen'!A:A,Warmteverliesberekening!A33,'Selectie afgifte-elementen'!B:B,Warmteverliesberekening!B33) -> 0
F34: 0 | H34: =SUMIFS('Selectie afgifte-elementen'!H:H,'Selectie afgifte-elementen'!A:A,Warmteverliesberekening!A34,'Selectie afgifte-elementen'!B:B,Warmteverliesberekening!B34) -> 0
F35: 0 | H35: =SUMIFS('Selectie afgifte-elementen'!H:H,'Selectie afgifte-elementen'!A:A,Warmteverliesberekening!A35,'Selectie afgifte-elementen'!B:B,Warmteverliesberekening!B35) -> 0
F36: 0 | H36: =SUMIFS('Selectie afgifte-elementen'!H:H,'Selectie afgifte-elementen'!A:A,Warmteverliesberekening!A36,'Selectie afgifte-elementen'!B:B,Warmteverliesberekening!B36) -> 0
F37: 0 | H37: =SUMIFS('Selectie afgifte-elementen'!H:H,'Selectie afgifte-elementen'!A:A,Warmteverliesberekening!A37,'Selectie afgifte-elementen'!B:B,Warmteverliesberekening!B37) -> 0
F38: 0 | H38: =SUMIFS('Selectie afgifte-elementen'!H:H,'Selectie afgifte-elementen'!A:A,Warmteverliesberekening!A38,'Selectie afgifte-elementen'!B:B,Warmteverliesberekening!B38) -> 0
F39: 0 | H39: =SUMIFS('Selectie afgifte-elementen'!H:H,'Selectie afgifte-elementen'!A:A,Warmteverliesberekening!A39,'Selectie afgifte-elementen'!B:B,Warmteverliesberekening!B39) -> 0
F40: 0 | H40: =SUMIFS('Selectie afgifte-elementen'!H:H,'Selectie afgifte-elementen'!A:A,Warmteverliesberekening!A40,'Selectie afgifte-elementen'!B:B,Warmteverliesberekening!B40) -> 0
F41: 0 | H41: =SUMIFS('Selectie afgifte-elementen'!H:H,'Selectie afgifte-elementen'!A:A,Warmteverliesberekening!A41,'Selectie afgifte-elementen'!B:B,Warmteverliesberekening!B41) -> 0
F42: 0 | H42: =SUMIFS('Selectie afgifte-elementen'!H:H,'Selectie afgifte-elementen'!A:A,Warmteverliesberekening!A42,'Selectie afgifte-elementen'!B:B,Warmteverliesberekening!B42) -> 0
F43: 0 | H43: =SUMIFS('Selectie afgifte-elementen'!H:H,'Selectie afgifte-elementen'!A:A,Warmteverliesberekening!A43,'Selectie afgifte-elementen'!B:B,Warmteverliesberekening!B43) -> 0
F44: 0 | H44: =SUMIFS('Selectie afgifte-elementen'!H:H,'Selectie afgifte-elementen'!A:A,Warmteverliesberekening!A44,'Selectie afgifte-elementen'!B:B,Warmteverliesberekening!B44) -> 0
F45: 0 | H45: =SUMIFS('Selectie afgifte-elementen'!H:H,'Selectie afgifte-elementen'!A:A,Warmteverliesberekening!A45,'Selectie afgifte-elementen'!B:B,Warmteverliesberekening!B45) -> 0
F46: 0 | H46: =SUMIFS('Selectie afgifte-elementen'!H:H,'Selectie afgifte-elementen'!A:A,Warmteverliesberekening!A46,'Selectie afgifte-elementen'!B:B,Warmteverliesberekening!B46) -> 0
F47: 0 | H47: =SUMIFS('Selectie afgifte-elementen'!H:H,'Selectie afgifte-elementen'!A:A,Warmteverliesberekening!A47,'Selectie afgifte-elementen'!B:B,Warmteverliesberekening!B47) -> 0
F48: 0 | H48: =SUMIFS('Selectie afgifte-elementen'!H:H,'Selectie afgifte-elementen'!A:A,Warmteverliesberekening!A48,'Selectie afgifte-elementen'!B:B,Warmteverliesberekening!B48) -> 0
F49: 0 | H49: =SUMIFS('Selectie afgifte-elementen'!H:H,'Selectie afgifte-elementen'!A:A,Warmteverliesberekening!A49,'Selectie afgifte-elementen'!B:B,Warmteverliesberekening!B49) -> 0
F50: 0 | H50: =SUMIFS('Selectie afgifte-elementen'!H:H,'Selectie afgifte-elementen'!A:A,Warmteverliesberekening!A50,'Selectie afgifte-elementen'!B:B,Warmteverliesberekening!B50) -> 0
F51: 0 | H51: =SUMIFS('Selectie afgifte-elementen'!H:H,'Selectie afgifte-elementen'!A:A,Warmteverliesberekening!A51,'Selectie afgifte-elementen'!B:B,Warmteverliesberekening!B51) -> 0
F52: 0 | H52: =SUMIFS('Selectie afgifte-elementen'!H:H,'Selectie afgifte-elementen'!A:A,Warmteverliesberekening!A52,'Selectie afgifte-elementen'!B:B,Warmteverliesberekening!B52) -> 0
F53: 0 | H53: =SUMIFS('Selectie afgifte-elementen'!H:H,'Selectie afgifte-elementen'!A:A,Warmteverliesberekening!A53,'Selectie afgifte-elementen'!B:B,Warmteverliesberekening!B53) -> 0
F54: 0 | H54: =SUMIFS('Selectie afgifte-elementen'!H:H,'Selectie afgifte-elementen'!A:A,Warmteverliesberekening!A54,'Selectie afgifte-elementen'!B:B,Warmteverliesberekening!B54) -> 0
F55: 0 | H55: =SUMIFS('Selectie afgifte-elementen'!H:H,'Selectie afgifte-elementen'!A:A,Warmteverliesberekening!A55,'Selectie afgifte-elementen'!B:B,Warmteverliesberekening!B55) -> 0
F56: 0 | H56: =SUMIFS('Selectie afgifte-elementen'!H:H,'Selectie afgifte-elementen'!A:A,Warmteverliesberekening!A56,'Selectie afgifte-elementen'!B:B,Warmteverliesberekening!B56) -> 0
F57: 0 | H57: =SUMIFS('Selectie afgifte-elementen'!H:H,'Selectie afgifte-elementen'!A:A,Warmteverliesberekening!A57,'Selectie afgifte-elementen'!B:B,Warmteverliesberekening!B57) -> 0
F58: 0 | H58: =SUMIFS('Selectie afgifte-elementen'!H:H,'Selectie afgifte-elementen'!A:A,Warmteverliesberekening!A58,'Selectie afgifte-elementen'!B:B,Warmteverliesberekening!B58) -> 0
F59: 0 | H59: =SUMIFS('Selectie afgifte-elementen'!H:H,'Selectie afgifte-elementen'!A:A,Warmteverliesberekening!A59,'Selectie afgifte-elementen'!B:B,Warmteverliesberekening!B59) -> 0
F60: 0 | H60: =SUMIFS('Selectie afgifte-elementen'!H:H,'Selectie afgifte-elementen'!A:A,Warmteverliesberekening!A60,'Selectie afgifte-elementen'!B:B,Warmteverliesberekening!B60) -> 0
F61: 0 | H61: =SUMIFS('Selectie afgifte-elementen'!H:H,'Selectie afgifte-elementen'!A:A,Warmteverliesberekening!A61,'Selectie afgifte-elementen'!B:B,Warmteverliesberekening!B61) -> 0
F62: 0 | H62: =SUMIFS('Selectie afgifte-elementen'!H:H,'Selectie afgifte-elementen'!A:A,Warmteverliesberekening!A62,'Selectie afgifte-elementen'!B:B,Warmteverliesberekening!B62) -> 0
F63: 0 | H63: =SUMIFS('Selectie afgifte-elementen'!H:H,'Selectie afgifte-elementen'!A:A,Warmteverliesberekening!A63,'Selectie afgifte-elementen'!B:B,Warmteverliesberekening!B63) -> 0
F64: 0 | H64: =SUMIFS('Selectie afgifte-elementen'!H:H,'Selectie afgifte-elementen'!A:A,Warmteverliesberekening!A64,'Selectie afgifte-elementen'!B:B,Warmteverliesberekening!B64) -> 0
F65: 0 | H65: =SUMIFS('Selectie afgifte-elementen'!H:H,'Selectie afgifte-elementen'!A:A,Warmteverliesberekening!A65,'Selectie afgifte-elementen'!B:B,Warmteverliesberekening!B65) -> 0
F66: 0 | H66: =SUMIFS('Selectie afgifte-elementen'!H:H,'Selectie afgifte-elementen'!A:A,Warmteverliesberekening!A66,'Selectie afgifte-elementen'!B:B,Warmteverliesberekening!B66) -> 0
F67: 0 | H67: =SUMIFS('Selectie afgifte-elementen'!H:H,'Selectie afgifte-elementen'!A:A,Warmteverliesberekening!A67,'Selectie afgifte-elementen'!B:B,Warmteverliesberekening!B67) -> 0
F68: 0 | H68: =SUMIFS('Selectie afgifte-elementen'!H:H,'Selectie afgifte-elementen'!A:A,Warmteverliesberekening!A68,'Selectie afgifte-elementen'!B:B,Warmteverliesberekening!B68) -> 0
F69: 0 | H69: =SUMIFS('Selectie afgifte-elementen'!H:H,'Selectie afgifte-elementen'!A:A,Warmteverliesberekening!A69,'Selectie afgifte-elementen'!B:B,Warmteverliesberekening!B69) -> 0
F70: 0 | H70: =SUMIFS('Selectie afgifte-elementen'!H:H,'Selectie afgifte-elementen'!A:A,Warmteverliesberekening!A70,'Selectie afgifte-elementen'!B:B,Warmteverliesberekening!B70) -> 0
F71: 0 | H71: =SUMIFS('Selectie afgifte-elementen'!H:H,'Selectie afgifte-elementen'!A:A,Warmteverliesberekening!A71,'Selectie afgifte-elementen'!B:B,Warmteverliesberekening!B71) -> 0
F72: 0 | H72: =SUMIFS('Selectie afgifte-elementen'!H:H,'Selectie afgifte-elementen'!A:A,Warmteverliesberekening!A72,'Selectie afgifte-elementen'!B:B,Warmteverliesberekening!B72) -> 0
F73: 0 | H73: =SUMIFS('Selectie afgifte-elementen'!H:H,'Selectie afgifte-elementen'!A:A,Warmteverliesberekening!A73,'Selectie afgifte-elementen'!B:B,Warmteverliesberekening!B73) -> 0
F74: 0 | H74: =SUMIFS('Selectie afgifte-elementen'!H:H,'Selectie afgifte-elementen'!A:A,Warmteverliesberekening!A74,'Selectie afgifte-elementen'!B:B,Warmteverliesberekening!B74) -> 0
F75: 0 | H75: =SUMIFS('Selectie afgifte-elementen'!H:H,'Selectie afgifte-elementen'!A:A,Warmteverliesberekening!A75,'Selectie afgifte-elementen'!B:B,Warmteverliesberekening!B75) -> 0
F76: 0 | H76: =SUMIFS('Selectie afgifte-elementen'!H:H,'Selectie afgifte-elementen'!A:A,Warmteverliesberekening!A76,'Selectie afgifte-elementen'!B:B,Warmteverliesberekening!B76) -> 0
F77: =IFERROR(E77/C77,0) -> 0 | H77: =SUMIFS('Selectie afgifte-elementen'!H:H,'Selectie afgifte-elementen'!A:A,Warmteverliesberekening!A77,'Selectie afgifte-elementen'!B:B,Warmteverliesberekening!B77) -> 0 | I77: =IF(E77="","",OR(H77>E77,G77<>"")) -> 
F78: 0 | H78: =SUMIFS('Selectie afgifte-elementen'!H:H,'Selectie afgifte-elementen'!A:A,Warmteverliesberekening!A78,'Selectie afgifte-elementen'!B:B,Warmteverliesberekening!B78) -> 0
F79: 0 | H79: =SUMIFS('Selectie afgifte-elementen'!H:H,'Selectie afgifte-elementen'!A:A,Warmteverliesberekening!A79,'Selectie afgifte-elementen'!B:B,Warmteverliesberekening!B79) -> 0
F80: 0 | H80: =SUMIFS('Selectie afgifte-elementen'!H:H,'Selectie afgifte-elementen'!A:A,Warmteverliesberekening!A80,'Selectie afgifte-elementen'!B:B,Warmteverliesberekening!B80) -> 0
F81: 0 | H81: =SUMIFS('Selectie afgifte-elementen'!H:H,'Selectie afgifte-elementen'!A:A,Warmteverliesberekening!A81,'Selectie afgifte-elementen'!B:B,Warmteverliesberekening!B81) -> 0
F82: 0 | H82: =SUMIFS('Selectie afgifte-elementen'!H:H,'Selectie afgifte-elementen'!A:A,Warmteverliesberekening!A82,'Selectie afgifte-elementen'!B:B,Warmteverliesberekening!B82) -> 0
F83: 0 | H83: =SUMIFS('Selectie afgifte-elementen'!H:H,'Selectie afgifte-elementen'!A:A,Warmteverliesberekening!A83,'Selectie afgifte-elementen'!B:B,Warmteverliesberekening!B83) -> 0

Sheet Selectie afgifte-elementen
C1: Selectie afgifteelement en verwarmingskring | I1: Radiator- en convectorselectie conform NBN EN 442 | Q1: Selectie vloerverwarming conform NBN EN 1264-2 of WTCB TV181 | AD1: Selectie verwarmingsbatterij in luchtgroep | AT1: Selectie betonkernactivering conform NBN EN 15377-1 | BA1: Directe ingave
A8: Lokaal nr | B8: Naam lokaal | C8: afgifteelement | D8: Kring | E8: Vertrek-temperatuur | F8: Retour-temperatuur | G8: Debiet | H8: Totaal afgiftevermogen | I8: merk en type | J8: aantal | K8: afmetingen | L8: vermogen 75/65/20 | M8: Correctie-factor | N8: vermogen bij ontwerpregime | O8: Debiet | P8: Totaal vermogen | Q8: Opp deel vloerverwarming | R8: Vloerafwerking | S8: Isolatie onder buizen | U8: Warmteweerstand | V8: buizen | Z8: Werkelijk afgiftevermogen | AA8: Warmteafgifte naar beneden | AB8: Debiet | AC8: Totaal vermogen | AD8: Lokaal of met luchtgroep | AE8: naam groep | AF8: luchtdebiet in lokaal | AH8: Percentage verse lucht | AI8: Temperatuur lucht | AO8: Rendement WTW | AP8: Vermogen | AR8: Debiet | AS8: Geleverd vermogen | AT8: Opp deel betonkernactivering | AU8: Pasafstand | AV8: aantal kringen | AW8: Lengte buizen per kring | AX8: Werkelijk afgiftevermogen | AY8: Debiet | AZ8: Totaal vermogen | BA8: Merk & type | BB8: Aantal | BC8: Technische fiche | BD8: Werkelijk afgiftevermogen | BE8: Debiet | BF8: Totaal vermogen
S9: dikte | T9: lambda | U9: boven buis ks | V9: type | W9: diameter | X9: Pasafstand | Y9: Lengte | AF9: Toevoer | AG9: Afvoer | AI9: Ruimte | AJ9: na WTW | AK9: Toevoer | AL9: Toevoer werkelijk | AM9: Toevoer van luchtgroep | AN9: Toevoertemperatuur berekend | AP9: VVW | AQ9: NVW
A10: 1 | B10: Living+keuken | C10: radiator | D10: K1 | E10: =IFERROR(VLOOKUP(D10,kringtemperatuur,2,0),0) -> 55 | F10: =IFERROR(VLOOKUP(D10,kringtemperatuur,3,0),0) -> 45 | G10: =IFERROR(IF(OR(C10=afgifte1,C10=afgifte2),O10)+IF(C10=afgifte3,AB10)+IF(C10=afgifte5,AR10)+IF(C10=afgifte6,AY10)+IF(C10=afgifte7,BE10),"") -> 0.4316815538 | H10: =IF(OR(C10=afgifte1,C10=afgifte2),P10)+IF(C10=afgifte3,AC10)+IF(OR(C10=afgifte4,C10=afgifte5),AS10)+IF(C10=afgifte6,AZ10)+IF(C10=afgifte7,BF10) -> 5019.497178 | I10: producent type | J10: 3 | K10: 900x900 | L10: 3261 | M10: 1.949 | N10: =IFERROR(L10/M10,0) -> 1673.165726 | O10: =IFERROR(P10*3600/($E10-$F10)/4186/1000,"") -> 0.4316815538 | P10: =N10*J10 -> 5019.497178 | Q10: 56 | R10: polierde beton | S10: 10 | T10: 0.0029 | U10: 6.14 | V10: PP | W10: 18 | X10: 9 | Y10: 617.3333333 | Z10: 110.7009574 | AA10: 9.45 | AB10: =IFERROR(SUM(Z10:AA10)*Q10*3600/(E10-F10)/4186/1000,"") -> 0.5786534405 | AC10: =Z10*Q10 -> 6199.253617 | AI10: =SUMIFS(Warmteverliesberekening!D:D,Warmteverliesberekening!A:A,'Selectie afgifte-elementen'!A10,Warmteverliesberekening!B:B,'Selectie afgifte-elementen'!B10) -> 20 | AL10: =IF(AD10=lucht2,AM10,AK10) -> 0 | AM10: =IFERROR(IF(AD10=lucht1,0,VLOOKUP(AE10,luchtgroep,11,0)),0) -> 0 | AN10: =IFERROR(IF(AD10=lucht2,0,IF(AD10=lucht1,buitentemperatuur*AH10+AI10*(1-AH10)+AH10*MIN(AF10:AG10)*AO10*(AI10-buitentemperatuur)/AF10+SUM(AP10:AQ10)*1000/AF10/0.34,IF(AD10=lucht3,MIN(AL10,AM10+SUM(AP10:AQ10)*1000/AF10/0.34),""))),"") ->  | AR10: =IFERROR(IF(AD10=lucht1,0.34*AF10*(AL10-AJ10)*3600/($E10-$F10)/4186/1000,IF(AD10=lucht3,0.34*AF10*(AL10-AM10)*3600/($E10-$F10)/4186/1000,0)),0) -> 0 | AS10: =IFERROR(0.34*AF10*(AL10-AI10),0) -> 0 | AY10: =IFERROR(AZ10*3600/($E10-$F10)/4186/1000,"") -> 0 | AZ10: =AX10*AT10 -> 0 | BE10: =IFERROR(BF10*3600/($E10-$F10)/4186/1000,"") -> 0 | BF10: =BB10*BD10 -> 0 | BG10: =IF(AD10="","",AND(OR(AD10=lucht1,AD10=lucht3),AN10=AL10)) -> 
A11: 2 | B11: Sas achterdeur | C11: radiator | D11: K1 | E11: 55 | F11: 45 | G11: 0 | H11: 0 | I11: producent type | N11: 0 | O11: 0 | P11: 0 | AB11: =IFERROR(SUM(Z11:AA11)*Q11*3600/(E11-F11)/4186/1000,"") -> 0 | AC11: 0 | AI11: =SUMIFS(Warmteverliesberekening!D:D,Warmteverliesberekening!A:A,'Selectie afgifte-elementen'!A11,Warmteverliesberekening!B:B,'Selectie afgifte-elementen'!B11) -> 16 | AL11: 0 | AM11: 0 | AR11: 0 | AS11: 0 | AY11: =IFERROR(AZ11*3600/($E11-$F11)/4186/1000,"") -> 0 | AZ11: 0 | BE11: =IFERROR(BF11*3600/($E11-$F11)/4186/1000,"") -> 0 | BF11: =BB11*BD11 -> 0
A12: 3 | B12: Wasplaats | C12: radiator | D12: K1 | E12: 55 | F12: 45 | G12: 0.05624809973 | H12: 654.040404 | I12: producent type | J12: 1 | K12: 450x600 | L12: 1295 | M12: 1.98 | N12: 654.040404 | O12: 0.05624809973 | P12: 654.040404 | Q12: 9.75 | R12: tegel | S12: 10 | T12: 0.0029 | U12: 4.65 | V12: PP | W12: 18 | X12: 10 | Y12: 97.5 | Z12: 81.015 | AA12: 9.45 | AB12: =IFERROR(SUM(Z12:AA12)*Q12*3600/(E12-F12)/4186/1000,"") -> 0.07585574534 | AC12: 789.89625 | AI12: =SUMIFS(Warmteverliesberekening!D:D,Warmteverliesberekening!A:A,'Selectie afgifte-elementen'!A12,Warmteverliesberekening!B:B,'Selectie afgifte-elementen'!B12) -> 20 | AL12: 0 | AM12: 0 | AR12: 0 | AS12: 0 | AY12: 0 | AZ12: 0 | BE12: 0 | BF12: =BB12*BD12 -> 0
A13: 4 | B13: Berging | C13: radiator | D13: K1 | E13: 55 | F13: 45 | G13: 0 | H13: 0 | I13: producent type | N13: 0 | O13: 0 | P13: 0 | AB13: 0 | AC13: 0 | AI13: =SUMIFS(Warmteverliesberekening!D:D,Warmteverliesberekening!A:A,'Selectie afgifte-elementen'!A13,Warmteverliesberekening!B:B,'Selectie afgifte-elementen'!B13) -> 16 | AL13: 0 | AM13: 0 | AQ13: 3 | AR13: 0 | AS13: 0 | AY13: 0 | AZ13: 0 | BE13: 0 | BF13: 0
A14: 5 | B14: WC | C14: radiator | D14: K1 | E14: 55 | F14: 45 | G14: 0 | H14: 0 | I14: producent type | N14: =IFERROR(L14/M14,0) -> 0 | O14: 0 | P14: 0 | AB14: 0 | AC14: 0 | AI14: =SUMIFS(Warmteverliesberekening!D:D,Warmteverliesberekening!A:A,'Selectie afgifte-elementen'!A14,Warmteverliesberekening!B:B,'Selectie afgifte-elementen'!B14) -> 16 | AL14: 0 | AM14: 0 | AR14: 0 | AS14: 0 | AY14: 0 | AZ14: 0 | BE14: 0 | BF14: 0
A15: 6 | B15: Inkomhal + trap | C15: radiator | D15: K1 | E15: 55 | F15: 45 | G15: 0 | H15: 0 | I15: producent type | N15: =IFERROR(L15/M15,0) -> 0 | O15: 0 | P15: 0 | Q15: 10 | R15: polibeton | S15: 10 | T15: 0.029 | U15: 6.14 | V15: PP | W15: 18 | X15: 10 | Y15: 100 | Z15: 135.095 | AA15: 9.45 | AB15: 0.1243100812 | AC15: 1350.95 | AI15: =SUMIFS(Warmteverliesberekening!D:D,Warmteverliesberekening!A:A,'Selectie afgifte-elementen'!A15,Warmteverliesberekening!B:B,'Selectie afgifte-elementen'!B15) -> 16 | AL15: 0 | AM15: 0 | AR15: 0 | AS15: 0 | AY15: 0 | AZ15: 0 | BE15: 0 | BF15: 0
A16: 7 | B16: Gang (1V) + trap | C16: radiator | D16: K1 | E16: 55 | F16: 45 | G16: 0 | H16: 0 | I16: producent type | N16: =IFERROR(L16/M16,0) -> 0 | O16: 0 | P16: 0 | Q16: 23.05 | R16: laminaat | S16: 5 | T16: 0.029 | U16: 3.38 | V16: PP | W16: 18 | X16: 15 | Y16: 153.6666667 | Z16: 73.8 | AA16: 10.66 | AB16: 0.1674269183 | AC16: 1701.09 | AI16: =SUMIFS(Warmteverliesberekening!D:D,Warmteverliesberekening!A:A,'Selectie afgifte-elementen'!A16,Warmteverliesberekening!B:B,'Selectie afgifte-elementen'!B16) -> 16 | AL16: =IF(AD16=lucht2,AM16,AK16) -> 0 | AM16: 0 | AN16: =IFERROR(IF(AD16=lucht2,0,IF(AD16=lucht1,buitentemperatuur*AH16+AI16*(1-AH16)+AH16*MIN(AF16:AG16)*AO16*(AI16-buitentemperatuur)/AF16+SUM(AP16:AQ16)*1000/AF16/0.34,IF(AD16=lucht3,MIN(AL16,AM16+SUM(AP16:AQ16)*1000/AF16/0.34),""))),"") ->  | AR16: 0 | AS16: 0 | AY16: 0 | AZ16: 0 | BE16: 0 | BF16: 0
A17: 8 | B17: Badkamer | C17: radiator | D17: K1 | E17: 55 | F17: 45 | G17: 0.07297050775 | H17: 848.4848485 | I17: producent type | J17: 1 | K17: 450x900 | L17: 1680 | M17: 1.98 | N17: =IFERROR(L17/M17,0) -> 848.4848485 | O17: 0.07297050775 | P17: 848.4848485 | Q17: 13.325 | R17: tegel | S17: 5 | T17: 0.029 | U17: 4.65 | V17: PP | W17: 18 | X17: 10 | Y17: 133.25 | Z17: 61.375 | AA17: 11.275 | AB17: 0.08325419255 | AC17: 817.821875 | AI17: =SUMIFS(Warmteverliesberekening!D:D,Warmteverliesberekening!A:A,'Selectie afgifte-elementen'!A17,Warmteverliesberekening!B:B,'Selectie afgifte-elementen'!B17) -> 24 | AL17: 0 | AM17: 0 | AR17: 0 | AS17: 0 | AY17: 0 | AZ17: 0 | BE17: 0 | BF17: 0
A18: 9 | B18: Slaapkamer achter | C18: radiator | D18: K1 | E18: 55 | F18: 45 | G18: 0.04995669905 | H18: 580.8853951 | I18: producent type | J18: 1 | K18: 450x750 | L18: 1404 | M18: 2.417 | N18: 580.8853951 | O18: 0.04995669905 | P18: 580.8853951 | Q18: 15.99 | R18: laminaat | S18: 5 | T18: 0.029 | U18: 3.38 | V18: PP | W18: 18 | X18: 15 | Y18: 106.6 | Z18: 66.6 | AA18: 10.66 | AB18: 0.1062444969 | AC18: 1064.934 | AI18: =SUMIFS(Warmteverliesberekening!D:D,Warmteverliesberekening!A:A,'Selectie afgifte-elementen'!A18,Warmteverliesberekening!B:B,'Selectie afgifte-elementen'!B18) -> 18 | AL18: 0 | AM18: 0 | AR18: 0 | AS18: 0 | AY18: 0 | AZ18: 0 | BE18: 0 | BF18: 0
A19: 10 | B19: Bureau | C19: radiator | D19: K1 | E19: 55 | F19: 45 | G19: 0.04211932045 | H19: 489.7540984 | I19: producent type | J19: 1 | K19: 450x600 | L19: 1195 | M19: 2.44 | N19: 489.7540984 | O19: 0.04211932045 | P19: 489.7540984 | Q19: 8.2 | R19: laminaat | S19: 5 | T19: 0.029 | U19: 3.86 | V19: PP | W19: 18 | X19: 10 | Y19: 82 | Z19: 59.4 | AA19: 11.275 | AB19: 0.04984056378 | AC19: 487.08 | AI19: =SUMIFS(Warmteverliesberekening!D:D,Warmteverliesberekening!A:A,'Selectie afgifte-elementen'!A19,Warmteverliesberekening!B:B,'Selectie afgifte-elementen'!B19) -> 20 | AL19: 0 | AM19: 0 | AR19: 0 | AS19: 0 | AY19: 0 | AZ19: 0 | BE19: 0 | BF19: 0
A20: 11 | B20: Slaapkamer voor (zuid) | C20: radiator | D20: K1 | E20: 55 | F20: 45 | G20: 0.04995669905 | H20: 580.8853951 | I20: producent type | J20: 1 | K20: 450x750 | L20: 1404 | M20: 2.417 | N20: 580.8853951 | O20: 0.04995669905 | P20: 580.8853951 | Q20: 12.095 | R20: laminaat | S20: 5 | T20: 0.029 | U20: 3.38 | V20: PP | W20: 18 | X20: 15 | Y20: 80.63333333 | Z20: 66.6 | AA20: 10.66 | AB20: 0.08036442714 | AC20: 805.527 | AI20: =SUMIFS(Warmteverliesberekening!D:D,Warmteverliesberekening!A:A,'Selectie afgifte-elementen'!A20,Warmteverliesberekening!B:B,'Selectie afgifte-elementen'!B20) -> 18 | AL20: 0 | AM20: 0 | AR20: 0 | AS20: 0 | AY20: 0 | AZ20: 0 | BE20: 0 | BF20: 0
A21: 12 | B21: Slaapkamer voor (noord) | C21: radiator | D21: K1 | E21: 55 | F21: 45 | G21: 0.04995669905 | H21: 580.8853951 | I21: producent type | J21: 1 | K21: 450x750 | L21: 1404 | M21: 2.417 | N21: 580.8853951 | O21: 0.04995669905 | P21: 580.8853951 | Q21: 12.095 | R21: laminaat | S21: 5 | T21: 0.029 | U21: 3.38 | V21: PP | W21: 18 | X21: 15 | Y21: 80.63333333 | Z21: 66.6 | AA21: 10.66 | AB21: 0.08036442714 | AC21: 805.527 | AI21: =SUMIFS(Warmteverliesberekening!D:D,Warmteverliesberekening!A:A,'Selectie afgifte-elementen'!A21,Warmteverliesberekening!B:B,'Selectie afgifte-elementen'!B21) -> 18 | AL21: 0 | AM21: 0 | AR21: 0 | AS21: 0 | AY21: 0 | AZ21: 0 | BE21: 0 | BF21: 0
A22: 13 | B22: Zolder + trap | C22: radiator | D22: K1 | E22: 55 | F22: 45 | G22: 0.2189115233 | H22: 2545.454545 | I22: producent type | J22: 3 | K22: 450x900 | L22: 1680 | M22: 1.98 | N22: 848.4848485 | O22: 0.2189115233 | P22: 2545.454545 | Q22: 55 | R22: beton | S22: 5 | T22: 0.029 | U22: 5.16 | V22: PP | W22: 18 | X22: 15 | Y22: 366.6666667 | Z22: 115.825 | AA22: 10.66 | AB22: 0.5982806976 | AC22: 6370.375 | AI22: =SUMIFS(Warmteverliesberekening!D:D,Warmteverliesberekening!A:A,'Selectie afgifte-elementen'!A22,Warmteverliesberekening!B:B,'Selectie afgifte-elementen'!B22) -> 16 | AL22: 0 | AM22: 0 | AR22: 0 | AS22: 0 | AY22: 0 | AZ22: 0 | BE22: 0 | BF22: 0
A23: 14 | B23: Technische ruimte | C23: radiator | D23: K1 | E23: 55 | F23: 45 | G23: 0 | H23: 0 | I23: producent type | N23: 0 | O23: 0 | P23: 0 | AB23: 0 | AC23: 0 | AI23: =SUMIFS(Warmteverliesberekening!D:D,Warmteverliesberekening!A:A,'Selectie afgifte-elementen'!A23,Warmteverliesberekening!B:B,'Selectie afgifte-elementen'!B23) -> 10 | AL23: 0 | AM23: 0 | AO23: , | AR23: 0 | AS23: 0 | AY23: 0 | AZ23: 0 | BE23: 0 | BF23: 0
C24: luchtverwarming | D24: K1 | E24: 55 | F24: 45 | G24: 0 | H24: 0 | N24: 0 | O24: 0 | P24: 0 | AB24: 0 | AC24: 0 | AI24: =SUMIFS(Warmteverliesberekening!D:D,Warmteverliesberekening!A:A,'Selectie afgifte-elementen'!A24,Warmteverliesberekening!B:B,'Selectie afgifte-elementen'!B24) -> 0 | AL24: 0 | AM24: 0 | AR24: 0 | AS24: 0 | AY24: 0 | AZ24: 0 | BE24: 0 | BF24: 0
E25: 0 | F25: 0 | G25: 0 | H25: 0 | N25: 0 | P25: 0 | AC25: 0 | AI25: =SUMIFS(Warmteverliesberekening!D:D,Warmteverliesberekening!A:A,'Selectie afgifte-elementen'!A25,Warmteverliesberekening!B:B,'Selectie afgifte-elementen'!B25) -> 0 | AL25: 0 | AM25: 0 | AR25: 0 | AS25: 0 | AZ25: 0 | BF25: 0
E26: 0 | F26: 0 | G26: 0 | H26: 0 | N26: 0 | P26: 0 | AC26: 0 | AI26: =SUMIFS(Warmteverliesberekening!D:D,Warmteverliesberekening!A:A,'Selectie afgifte-elementen'!A26,Warmteverliesberekening!B:B,'Selectie afgifte-elementen'!B26) -> 0 | AL26: 0 | AM26: 0 | AR26: 0 | AS26: 0 | AZ26: 0 | BF26: 0
E27: 0 | F27: 0 | G27: 0 | H27: 0 | N27: 0 | P27: 0 | AC27: 0 | AI27: =SUMIFS(Warmteverliesberekening!D:D,Warmteverliesberekening!A:A,'Selectie afgifte-elementen'!A27,Warmteverliesberekening!B:B,'Selectie afgifte-elementen'!B27) -> 0 | AL27: 0 | AM27: 0 | AR27: 0 | AS27: 0 | AZ27: 0 | BF27: 0
E28: 0 | F28: 0 | G28: 0 | H28: 0 | N28: 0 | P28: 0 | AC28: 0 | AI28: =SUMIFS(Warmteverliesberekening!D:D,Warmteverliesberekening!A:A,'Selectie afgifte-elementen'!A28,Warmteverliesberekening!B:B,'Selectie afgifte-elementen'!B28) -> 0 | AL28: 0 | AM28: 0 | AR28: 0 | AS28: 0 | AZ28: 0 | BF28: 0
E29: 0 | F29: 0 | G29: 0 | H29: 0 | N29: 0 | P29: 0 | AC29: 0 | AI29: =SUMIFS(Warmteverliesberekening!D:D,Warmteverliesberekening!A:A,'Selectie afgifte-elementen'!A29,Warmteverliesberekening!B:B,'Selectie afgifte-elementen'!B29) -> 0 | AL29: 0 | AM29: 0 | AR29: 0 | AS29: 0 | AZ29: 0 | BF29: 0
E30: 0 | F30: 0 | G30: 0 | H30: 0 | N30: 0 | P30: 0 | AC30: 0 | AI30: =SUMIFS(Warmteverliesberekening!D:D,Warmteverliesberekening!A:A,'Selectie afgifte-elementen'!A30,Warmteverliesberekening!B:B,'Selectie afgifte-elementen'!B30) -> 0 | AL30: 0 | AM30: 0 | AR30: 0 | AS30: 0 | AZ30: 0 | BF30: 0
E31: 0 | F31: 0 | G31: 0 | H31: 0 | N31: 0 | P31: 0 | AC31: 0 | AI31: =SUMIFS(Warmteverliesberekening!D:D,Warmteverliesberekening!A:A,'Selectie afgifte-elementen'!A31,Warmteverliesberekening!B:B,'Selectie afgifte-elementen'!B31) -> 0 | AL31: 0 | AM31: 0 | AR31: 0 | AS31: 0 | AZ31: 0 | BF31: 0
E32: 0 | F32: 0 | G32: 0 | H32: 0 | N32: 0 | P32: 0 | AC32: 0 | AI32: =SUMIFS(Warmteverliesberekening!D:D,Warmteverliesberekening!A:A,'Selectie afgifte-elementen'!A32,Warmteverliesberekening!B:B,'Selectie afgifte-elementen'!B32) -> 0 | AL32: 0 | AM32: 0 | AR32: 0 | AS32: 0 | AZ32: 0 | BF32: 0
E33: 0 | F33: 0 | G33: 0 | H33: 0 | N33: 0 | P33: 0 | AC33: 0 | AI33: =SUMIFS(Warmteverliesberekening!D:D,Warmteverliesberekening!A:A,'Selectie afgifte-elementen'!A33,Warmteverliesberekening!B:B,'Selectie afgifte-elementen'!B33) -> 0 | AL33: 0 | AM33: 0 | AR33: 0 | AS33: 0 | AZ33: 0 | BF33: 0
E34: 0 | F34: 0 | G34: 0 | H34: 0 | N34: 0 | P34: 0 | AC34: 0 | AI34: =SUMIFS(Warmteverliesberekening!D:D,Warmteverliesberekening!A:A,'Selectie afgifte-elementen'!A34,Warmteverliesberekening!B:B,'Selectie afgifte-elementen'!B34) -> 0 | AL34: 0 | AM34: 0 | AR34: 0 | AS34: 0 | AZ34: 0 | BF34: 0
E35: 0 | F35: 0 | G35: 0 | H35: 0 | N35: 0 | P35: 0 | AC35: 0 | AI35: =SUMIFS(Warmteverliesberekening!D:D,Warmteverliesberekening!A:A,'Selectie afgifte-elementen'!A35,Warmteverliesberekening!B:B,'Selectie afgifte-elementen'!B35) -> 0 | AL35: 0 | AM35: 0 | AR35: 0 | AS35: 0 | AZ35: 0 | BF35: 0
E36: 0 | F36: 0 | G36: 0 | H36: 0 | N36: 0 | P36: 0 | AC36: 0 | AI36: =SUMIFS(Warmteverliesberekening!D:D,Warmteverliesberekening!A:A,'Selectie afgifte-elementen'!A36,Warmteverliesberekening!B:B,'Selectie afgifte-elementen'!B36) -> 0 | AL36: 0 | AM36: 0 | AR36: 0 | AS36: 0 | AZ36: 0 | BF36: 0
E37: 0 | F37: 0 | G37: 0 | H37: 0 | N37: 0 | P37: 0 | AC37: 0 | AI37: =SUMIFS(Warmteverliesberekening!D:D,Warmteverliesberekening!A:A,'Selectie afgifte-elementen'!A37,Warmteverliesberekening!B:B,'Selectie afgifte-elementen'!B37) -> 0 | AL37: 0 | AM37: 0 | AR37: 0 | AS37: 0 | AZ37: 0 | BF37: 0
E38: 0 | F38: 0 | G38: 0 | H38: 0 | N38: 0 | P38: 0 | AC38: 0 | AI38: =SUMIFS(Warmteverliesberekening!D:D,Warmteverliesberekening!A:A,'Selectie afgifte-elementen'!A38,Warmteverliesberekening!B:B,'Selectie afgifte-elementen'!B38) -> 0 | AL38: 0 | AM38: 0 | AR38: 0 | AS38: 0 | AZ38: 0 | BF38: 0
E39: 0 | F39: 0 | G39: 0 | H39: 0 | N39: 0 | P39: 0 | AC39: 0 | AI39: =SUMIFS(Warmteverliesberekening!D:D,Warmteverliesberekening!A:A,'Selectie afgifte-elementen'!A39,Warmteverliesberekening!B:B,'Selectie afgifte-elementen'!B39) -> 0 | AL39: 0 | AM39: 0 | AR39: 0 | AS39: 0 | AZ39: 0 | BF39: 0
E40: 0 | F40: 0 | G40: 0 | H40: 0 | N40: 0 | P40: 0 | AC40: 0 | AI40: =SUMIFS(Warmteverliesberekening!D:D,Warmteverliesberekening!A:A,'Selectie afgifte-elementen'!A40,Warmteverliesberekening!B:B,'Selectie afgifte-elementen'!B40) -> 0 | AL40: 0 | AM40: 0 | AR40: 0 | AS40: 0 | AZ40: 0 | BF40: 0
E41: 0 | F41: 0 | G41: 0 | H41: 0 | N41: 0 | P41: 0 | AC41: 0 | AI41: =SUMIFS(Warmteverliesberekening!D:D,Warmteverliesberekening!A:A,'Selectie afgifte-elementen'!A41,Warmteverliesberekening!B:B,'Selectie afgifte-elementen'!B41) -> 0 | AL41: 0 | AM41: 0 | AR41: 0 | AS41: 0 | AZ41: 0 | BF41: 0
E42: =IFERROR(VLOOKUP(D42,kringtemperatuur,2,0),0) -> 0 | F42: =IFERROR(VLOOKUP(D42,kringtemperatuur,3,0),0) -> 0 | G42: =IFERROR(IF(OR(C42=afgifte1,C42=afgifte2),O42)+IF(C42=afgifte3,AB42)+IF(C42=afgifte5,AR42)+IF(C42=afgifte6,AY42)+IF(C42=afgifte7,BE42),"") -> 0 | H42: =IF(OR(C42=afgifte1,C42=afgifte2),P42)+IF(C42=afgifte3,AC42)+IF(OR(C42=afgifte4,C42=afgifte5),AS42)+IF(C42=afgifte6,AZ42)+IF(C42=afgifte7,BF42) -> 0 | N42: 0 | P42: =N42*J42 -> 0 | AC42: =Z42*Q42 -> 0 | AI42: =SUMIFS(Warmteverliesberekening!D:D,Warmteverliesberekening!A:A,'Selectie afgifte-elementen'!A42,Warmteverliesberekening!B:B,'Selectie afgifte-elementen'!B42) -> 0 | AL42: 0 | AM42: =IFERROR(IF(AD42=lucht1,0,VLOOKUP(AE42,luchtgroep,11,0)),0) -> 0 | AN42: =IFERROR(IF(AD42=lucht2,0,IF(AD42=lucht1,buitentemperatuur*AH42+AI42*(1-AH42)+AH42*MIN(AF42:AG42)*AO42*(AI42-buitentemperatuur)/AF42+SUM(AP42:AQ42)*1000/AF42/0.34,IF(AD42=lucht3,MIN(AL42,AM42+SUM(AP42:AQ42)*1000/AF42/0.34),""))),"") ->  | AR42: =IFERROR(IF(AD42=lucht1,0.34*AF42*(AL42-AJ42)*3600/($E42-$F42)/4186/1000,IF(AD42=lucht3,0.34*AF42*(AL42-AM42)*3600/($E42-$F42)/4186/1000,0)),0) -> 0 | AS42: =IFERROR(0.34*AF42*(AL42-AI42),0) -> 0 | AZ42: =AX42*AT42 -> 0 | BF42: 0 | BG42: =IF(AD42="","",AND(OR(AD42=lucht1,AD42=lucht3),AN42=AL42)) -> 
E43: 0 | F43: 0 | G43: 0 | H43: 0 | N43: 0 | P43: 0 | AC43: 0 | AI43: =SUMIFS(Warmteverliesberekening!D:D,Warmteverliesberekening!A:A,'Selectie afgifte-elementen'!A43,Warmteverliesberekening!B:B,'Selectie afgifte-elementen'!B43) -> 0 | AL43: 0 | AM43: 0 | AR43: 0 | AS43: 0 | AZ43: 0 | BF43: 0
E44: 0 | F44: 0 | G44: 0 | H44: 0 | N44: 0 | P44: 0 | AC44: 0 | AI44: =SUMIFS(Warmteverliesberekening!D:D,Warmteverliesberekening!A:A,'Selectie afgifte-elementen'!A44,Warmteverliesberekening!B:B,'Selectie afgifte-elementen'!B44) -> 0 | AL44: 0 | AM44: 0 | AR44: 0 | AS44: 0 | AZ44: 0 | BF44: 0
E45: 0 | F45: 0 | G45: 0 | H45: 0 | N45: 0 | P45: 0 | AC45: 0 | AI45: =SUMIFS(Warmteverliesberekening!D:D,Warmteverliesberekening!A:A,'Selectie afgifte-elementen'!A45,Warmteverliesberekening!B:B,'Selectie afgifte-elementen'!B45) -> 0 | AL45: 0 | AM45: 0 | AR45: 0 | AS45: 0 | AZ45: 0 | BF45: 0
E46: 0 | F46: 0 | G46: 0 | H46: 0 | N46: 0 | P46: 0 | AC46: 0 | AI46: =SUMIFS(Warmteverliesberekening!D:D,Warmteverliesberekening!A:A,'Selectie afgifte-elementen'!A46,Warmteverliesberekening!B:B,'Selectie afgifte-elementen'!B46) -> 0 | AL46: =IF(AD46=lucht2,AM46,AK46) -> 0 | AM46: 0 | AR46: 0 | AS46: 0 | AZ46: 0 | BF46: 0
E47: 0 | F47: 0 | G47: 0 | H47: 0 | N47: 0 | P47: 0 | AC47: 0 | AI47: =SUMIFS(Warmteverliesberekening!D:D,Warmteverliesberekening!A:A,'Selectie afgifte-elementen'!A47,Warmteverliesberekening!B:B,'Selectie afgifte-elementen'!B47) -> 0 | AL47: 0 | AM47: 0 | AR47: 0 | AS47: 0 | AZ47: 0 | BF47: 0
E48: 0 | F48: 0 | G48: 0 | H48: 0 | N48: 0 | P48: 0 | AC48: 0 | AI48: =SUMIFS(Warmteverliesberekening!D:D,Warmteverliesberekening!A:A,'Selectie afgifte-elementen'!A48,Warmteverliesberekening!B:B,'Selectie afgifte-elementen'!B48) -> 0 | AL48: 0 | AM48: 0 | AR48: 0 | AS48: 0 | AZ48: 0 | BF48: 0
E49: 0 | F49: 0 | G49: 0 | H49: 0 | N49: 0 | P49: 0 | AC49: 0 | AI49: =SUMIFS(Warmteverliesberekening!D:D,Warmteverliesberekening!A:A,'Selectie afgifte-elementen'!A49,Warmteverliesberekening!B:B,'Selectie afgifte-elementen'!B49) -> 0 | AL49: 0 | AM49: 0 | AR49: 0 | AS49: 0 | AZ49: 0 | BF49: 0
E50: 0 | F50: 0 | G50: 0 | H50: 0 | N50: 0 | P50: 0 | AC50: 0 | AI50: =SUMIFS(Warmteverliesberekening!D:D,Warmteverliesberekening!A:A,'Selectie afgifte-elementen'!A50,Warmteverliesberekening!B:B,'Selectie afgifte-elementen'!B50) -> 0 | AL50: 0 | AM50: 0 | AR50: 0 | AS50: 0 | AZ50: 0 | BF50: 0
E51: 0 | F51: 0 | G51: 0 | H51: 0 | N51: 0 | P51: 0 | AC51: 0 | AI51: =SUMIFS(Warmteverliesberekening!D:D,Warmteverliesberekening!A:A,'Selectie afgifte-elementen'!A51,Warmteverliesberekening!B:B,'Selectie afgifte-elementen'!B51) -> 0 | AL51: 0 | AM51: 0 | AR51: 0 | AS51: 0 | AZ51: 0 | BF51: 0
E52: 0 | F52: 0 | G52: 0 | H52: 0 | N52: 0 | P52: 0 | AC52: 0 | AI52: =SUMIFS(Warmteverliesberekening!D:D,Warmteverliesberekening!A:A,'Selectie afgifte-elementen'!A52,Warmteverliesberekening!B:B,'Selectie afgifte-elementen'!B52) -> 0 | AL52: 0 | AM52: 0 | AR52: 0 | AS52: 0 | AZ52: 0 | BF52: 0
E53: 0 | F53: 0 | G53: 0 | H53: 0 | N53: 0 | P53: 0 | AC53: 0 | AI53: =SUMIFS(Warmteverliesberekening!D:D,Warmteverliesberekening!A:A,'Selectie afgifte-elementen'!A53,Warmteverliesberekening!B:B,'Selectie afgifte-elementen'!B53) -> 0 | AL53: 0 | AM53: 0 | AR53: 0 | AS53: 0 | AZ53: 0 | BF53: 0
E54: 0 | F54: 0 | G54: 0 | H54: 0 | N54: 0 | P54: 0 | AC54: 0 | AI54: =SUMIFS(Warmteverliesberekening!D:D,Warmteverliesberekening!A:A,'Selectie afgifte-elementen'!A54,Warmteverliesberekening!B:B,'Selectie afgifte-elementen'!B54) -> 0 | AL54: 0 | AM54: 0 | AR54: 0 | AS54: 0 | AZ54: 0 | BF54: 0
E55: 0 | F55: 0 | G55: 0 | H55: 0 | N55: 0 | P55: 0 | AC55: 0 | AI55: =SUMIFS(Warmteverliesberekening!D:D,Warmteverliesberekening!A:A,'Selectie afgifte-elementen'!A55,Warmteverliesberekening!B:B,'Selectie afgifte-elementen'!B55) -> 0 | AL55: 0 | AM55: 0 | AR55: 0 | AS55: 0 | AZ55: 0 | BF55: 0
E56: 0 | F56: 0 | G56: 0 | H56: 0 | N56: 0 | P56: 0 | AC56: 0 | AI56: =SUMIFS(Warmteverliesberekening!D:D,Warmteverliesberekening!A:A,'Selectie afgifte-elementen'!A56,Warmteverliesberekening!B:B,'Selectie afgifte-elementen'!B56) -> 0 | AL56: 0 | AM56: 0 | AR56: 0 | AS56: 0 | AZ56: 0 | BF56: 0
E57: 0 | F57: 0 | G57: 0 | H57: 0 | N57: 0 | P57: 0 | AC57: 0 | AI57: =SUMIFS(Warmteverliesberekening!D:D,Warmteverliesberekening!A:A,'Selectie afgifte-elementen'!A57,Warmteverliesberekening!B:B,'Selectie afgifte-elementen'!B57) -> 0 | AL57: 0 | AM57: 0 | AR57: 0 | AS57: 0 | AZ57: 0 | BF57: 0
E58: 0 | F58: 0 | G58: 0 | H58: 0 | N58: 0 | P58: 0 | AC58: 0 | AI58: =SUMIFS(Warmteverliesberekening!D:D,Warmteverliesberekening!A:A,'Selectie afgifte-elementen'!A58,Warmteverliesberekening!B:B,'Selectie afgifte-elementen'!B58) -> 0 | AL58: 0 | AM58: 0 | AR58: 0 | AS58: 0 | AZ58: 0 | BF58: 0
E59: 0 | F59: 0 | G59: 0 | H59: 0 | N59: 0 | P59: 0 | AC59: 0 | AI59: =SUMIFS(Warmteverliesberekening!D:D,Warmteverliesberekening!A:A,'Selectie afgifte-elementen'!A59,Warmteverliesberekening!B:B,'Selectie afgifte-elementen'!B59) -> 0 | AL59: 0 | AM59: 0 | AR59: 0 | AS59: 0 | AZ59: 0 | BF59: 0
E60: 0 | F60: 0 | G60: 0 | H60: 0 | N60: 0 | P60: 0 | AC60: 0 | AI60: =SUMIFS(Warmteverliesberekening!D:D,Warmteverliesberekening!A:A,'Selectie afgifte-elementen'!A60,Warmteverliesberekening!B:B,'Selectie afgifte-elementen'!B60) -> 0 | AL60: 0 | AM60: 0 | AR60: 0 | AS60: 0 | AZ60: 0 | BF60: 0
E61: 0 | F61: 0 | G61: 0 | H61: 0 | N61: 0 | P61: 0 | AC61: 0 | AI61: =SUMIFS(Warmteverliesberekening!D:D,Warmteverliesberekening!A:A,'Selectie afgifte-elementen'!A61,Warmteverliesberekening!B:B,'Selectie afgifte-elementen'!B61) -> 0 | AL61: 0 | AM61: 0 | AR61: 0 | AS61: 0 | AZ61: 0 | BF61: 0
E62: 0 | F62: 0 | G62: 0 | H62: 0 | N62: 0 | P62: 0 | AC62: 0 | AI62: =SUMIFS(Warmteverliesberekening!D:D,Warmteverliesberekening!A:A,'Selectie afgifte-elementen'!A62,Warmteverliesberekening!B:B,'Selectie afgifte-elementen'!B62) -> 0 | AL62: 0 | AM62: 0 | AR62: 0 | AS62: 0 | AZ62: 0 | BF62: 0
E63: 0 | F63: 0 | G63: 0 | H63: 0 | N63: 0 | P63: 0 | AC63: 0 | AI63: =SUMIFS(Warmteverliesberekening!D:D,Warmteverliesberekening!A:A,'Selectie afgifte-elementen'!A63,Warmteverliesberekening!B:B,'Selectie afgifte-elementen'!B63) -> 0 | AL63: 0 | AM63: 0 | AR63: 0 | AS63: 0 | AZ63: 0 | BF63: 0
E64: 0 | F64: 0 | G64: 0 | H64: 0 | N64: 0 | P64: 0 | AC64: 0 | AI64: =SUMIFS(Warmteverliesberekening!D:D,Warmteverliesberekening!A:A,'Selectie afgifte-elementen'!A64,Warmteverliesberekening!B:B,'Selectie afgifte-elementen'!B64) -> 0 | AL64: 0 | AM64: 0 | AR64: 0 | AS64: 0 | AZ64: 0 | BF64: 0
E65: 0 | F65: 0 | G65: 0 | H65: 0 | N65: 0 | P65: 0 | AC65: 0 | AI65: =SUMIFS(Warmteverliesberekening!D:D,Warmteverliesberekening!A:A,'Selectie afgifte-elementen'!A65,Warmteverliesberekening!B:B,'Selectie afgifte-elementen'!B65) -> 0 | AL65: 0 | AM65: 0 | AR65: 0 | AS65: 0 | AZ65: 0 | BF65: 0
E66: 0 | F66: 0 | G66: 0 | H66: 0 | N66: 0 | P66: 0 | AC66: 0 | AI66: =SUMIFS(Warmteverliesberekening!D:D,Warmteverliesberekening!A:A,'Selectie afgifte-elementen'!A66,Warmteverliesberekening!B:B,'Selectie afgifte-elementen'!B66) -> 0 | AL66: 0 | AM66: 0 | AR66: 0 | AS66: 0 | AZ66: 0 | BF66: 0
E67: 0 | F67: 0 | G67: 0 | H67: 0 | N67: 0 | P67: 0 | AC67: 0 | AI67: =SUMIFS(Warmteverliesberekening!D:D,Warmteverliesberekening!A:A,'Selectie afgifte-elementen'!A67,Warmteverliesberekening!B:B,'Selectie afgifte-elementen'!B67) -> 0 | AL67: 0 | AM67: 0 | AR67: 0 | AS67: 0 | AZ67: 0 | BF67: 0
E68: 0 | F68: 0 | G68: 0 | H68: 0 | N68: 0 | P68: 0 | AC68: 0 | AI68: =SUMIFS(Warmteverliesberekening!D:D,Warmteverliesberekening!A:A,'Selectie afgifte-elementen'!A68,Warmteverliesberekening!B:B,'Selectie afgifte-elementen'!B68) -> 0 | AL68: 0 | AM68: 0 | AR68: 0 | AS68: 0 | AZ68: 0 | BF68: 0
E69: 0 | F69: 0 | G69: 0 | H69: 0 | N69: 0 | P69: 0 | AC69: 0 | AI69: =SUMIFS(Warmteverliesberekening!D:D,Warmteverliesberekening!A:A,'Selectie afgifte-elementen'!A69,Warmteverliesberekening!B:B,'Selectie afgifte-elementen'!B69) -> 0 | AL69: 0 | AM69: 0 | AR69: 0 | AS69: 0 | AZ69: 0 | BF69: 0
E70: 0 | F70: 0 | G70: 0 | H70: 0 | N70: 0 | P70: 0 | AC70: 0 | AI70: =SUMIFS(Warmteverliesberekening!D:D,Warmteverliesberekening!A:A,'Selectie afgifte-elementen'!A70,Warmteverliesberekening!B:B,'Selectie afgifte-elementen'!B70) -> 0 | AL70: 0 | AM70: 0 | AR70: 0 | AS70: 0 | AZ70: 0 | BF70: 0
E71: 0 | F71: 0 | G71: 0 | H71: 0 | N71: 0 | P71: 0 | AC71: 0 | AI71: =SUMIFS(Warmteverliesberekening!D:D,Warmteverliesberekening!A:A,'Selectie afgifte-elementen'!A71,Warmteverliesberekening!B:B,'Selectie afgifte-elementen'!B71) -> 0 | AL71: 0 | AM71: 0 | AR71: 0 | AS71: 0 | AZ71: 0 | BF71: 0
E72: 0 | F72: 0 | G72: 0 | H72: 0 | N72: 0 | P72: 0 | AC72: 0 | AI72: =SUMIFS(Warmteverliesberekening!D:D,Warmteverliesberekening!A:A,'Selectie afgifte-elementen'!A72,Warmteverliesberekening!B:B,'Selectie afgifte-elementen'!B72) -> 0 | AL72: 0 | AM72: 0 | AR72: 0 | AS72: 0 | AZ72: 0 | BF72: 0
E73: 0 | F73: 0 | G73: 0 | H73: 0 | N73: 0 | P73: 0 | AC73: 0 | AI73: =SUMIFS(Warmteverliesberekening!D:D,Warmteverliesberekening!A:A,'Selectie afgifte-elementen'!A73,Warmteverliesberekening!B:B,'Selectie afgifte-elementen'!B73) -> 0 | AL73: 0 | AM73: 0 | AR73: 0 | AS73: 0 | AZ73: 0 | BF73: 0
E74: =IFERROR(VLOOKUP(D74,kringtemperatuur,2,0),0) -> 0 | F74: =IFERROR(VLOOKUP(D74,kringtemperatuur,3,0),0) -> 0 | G74: =IFERROR(IF(OR(C74=afgifte1,C74=afgifte2),O74)+IF(C74=afgifte3,AB74)+IF(C74=afgifte5,AR74)+IF(C74=afgifte6,AY74)+IF(C74=afgifte7,BE74),"") -> 0 | H74: =IF(OR(C74=afgifte1,C74=afgifte2),P74)+IF(C74=afgifte3,AC74)+IF(OR(C74=afgifte4,C74=afgifte5),AS74)+IF(C74=afgifte6,AZ74)+IF(C74=afgifte7,BF74) -> 0 | N74: 0 | P74: =N74*J74 -> 0 | AC74: =Z74*Q74 -> 0 | AI74: =SUMIFS(Warmteverliesberekening!D:D,Warmteverliesberekening!A:A,'Selectie afgifte-elementen'!A74,Warmteverliesberekening!B:B,'Selectie afgifte-elementen'!B74) -> 0 | AL74: 0 | AM74: =IFERROR(IF(AD74=lucht1,0,VLOOKUP(AE74,luchtgroep,11,0)),0) -> 0 | AN74: =IFERROR(IF(AD74=lucht2,0,IF(AD74=lucht1,buitentemperatuur*AH74+AI74*(1-AH74)+AH74*MIN(AF74:AG74)*AO74*(AI74-buitentemperatuur)/AF74+SUM(AP74:AQ74)*1000/AF74/0.34,IF(AD74=lucht3,MIN(AL74,AM74+SUM(AP74:AQ74)*1000/AF74/0.34),""))),"") ->  | AR74: =IFERROR(IF(AD74=lucht1,0.34*AF74*(AL74-AJ74)*3600/($E74-$F74)/4186/1000,IF(AD74=lucht3,0.34*AF74*(AL74-AM74)*3600/($E74-$F74)/4186/1000,0)),0) -> 0 | AS74: =IFERROR(0.34*AF74*(AL74-AI74),0) -> 0 | AZ74: =AX74*AT74 -> 0 | BF74: 0 | BG74: =IF(AD74="","",AND(OR(AD74=lucht1,AD74=lucht3),AN74=AL74)) -> 
E75: 0 | F75: 0 | G75: 0 | H75: 0 | N75: 0 | O75: =IFERROR(P75*3600/($E75-$F75)/4186/1000,"") ->  | P75: 0 | AC75: 0 | AI75: =SUMIFS(Warmteverliesberekening!D:D,Warmteverliesberekening!A:A,'Selectie afgifte-elementen'!A75,Warmteverliesberekening!B:B,'Selectie afgifte-elementen'!B75) -> 0 | AL75: 0 | AM75: 0 | AR75: 0 | AS75: 0 | AY75: =IFERROR(AZ75*3600/($E75-$F75)/4186/1000,"") ->  | AZ75: 0 | BE75: =IFERROR(BF75*3600/($E75-$F75)/4186/1000,"") ->  | BF75: 0
E76: 0 | F76: 0 | G76: 0 | H76: 0 | N76: 0 | P76: 0 | AB76: =IFERROR(SUM(Z76:AA76)*Q76*3600/(E76-F76)/4186/1000,"") ->  | AC76: 0 | AI76: =SUMIFS(Warmteverliesberekening!D:D,Warmteverliesberekening!A:A,'Selectie afgifte-elementen'!A76,Warmteverliesberekening!B:B,'Selectie afgifte-elementen'!B76) -> 0 | AL76: 0 | AM76: 0 | AR76: 0 | AS76: 0 | AZ76: 0 | BF76: =BB76*BD76 -> 0
E77: 0 | F77: 0 | G77: 0 | H77: 0 | N77: 0 | P77: 0 | AC77: 0 | AI77: =SUMIFS(Warmteverliesberekening!D:D,Warmteverliesberekening!A:A,'Selectie afgifte-elementen'!A77,Warmteverliesberekening!B:B,'Selectie afgifte-elementen'!B77) -> 0 | AL77: 0 | AM77: 0 | AR77: 0 | AS77: 0 | AZ77: 0 | BF77: 0
E78: 0 | F78: 0 | G78: 0 | H78: 0 | N78: 0 | P78: 0 | AC78: 0 | AI78: =SUMIFS(Warmteverliesberekening!D:D,Warmteverliesberekening!A:A,'Selectie afgifte-elementen'!A78,Warmteverliesberekening!B:B,'Selectie afgifte-elementen'!B78) -> 0 | AL78: =IF(AD78=lucht2,AM78,AK78) -> 0 | AM78: 0 | AR78: 0 | AS78: 0 | AZ78: 0 | BF78: 0
E79: 0 | F79: 0 | G79: 0 | H79: 0 | N79: =IFERROR(L79/M79,0) -> 0 | P79: 0 | AC79: 0 | AI79: =SUMIFS(Warmteverliesberekening!D:D,Warmteverliesberekening!A:A,'Selectie afgifte-elementen'!A79,Warmteverliesberekening!B:B,'Selectie afgifte-elementen'!B79) -> 0 | AL79: 0 | AM79: 0 | AR79: 0 | AS79: 0 | AZ79: 0 | BF79: 0
E80: 0 | F80: 0 | G80: 0 | H80: 0 | N80: 0 | P80: 0 | AC80: 0 | AI80: =SUMIFS(Warmteverliesberekening!D:D,Warmteverliesberekening!A:A,'Selectie afgifte-elementen'!A80,Warmteverliesberekening!B:B,'Selectie afgifte-elementen'!B80) -> 0 | AL80: 0 | AM80: 0 | AR80: 0 | AS80: 0 | AZ80: 0 | BF80: 0
E81: 0 | F81: 0 | G81: 0 | H81: 0 | N81: 0 | P81: 0 | AC81: 0 | AI81: =SUMIFS(Warmteverliesberekening!D:D,Warmteverliesberekening!A:A,'Selectie afgifte-elementen'!A81,Warmteverliesberekening!B:B,'Selectie afgifte-elementen'!B81) -> 0 | AL81: 0 | AM81: 0 | AR81: 0 | AS81: 0 | AZ81: 0 | BF81: 0

Sheet Kringen en luchtgroepen
A1: Tabel 1: kringen verwarming | H1: Tabel 2: Ventilatiegroepen
A2: kring | B2: vertrek temperatuur | C2: retour temperatuur | D2: Debiet | H2: Naam | I2: merk en type | J2: kring | K2: vertrek temperatuur | L2: retour temperatuur | M2: luchtdebiet | O2: Percentage verse lucht | P2: Temperatuur lucht | T2: Rendement WTW | U2: Vermogen | W2: Debiet
M3: Toevoer | N3: Afvoer | P3: Afvoerlucht | Q3: na WTW | R3: Toevoerlucht | S3: maximale temperatuur | U3: VVW | V3: VW
A5: K1 | B5: 55 | C5: 45 | D5: =SUMIF($J$4:$J$12,$A5,$W$4:$W$12)+SUMIF('Selectie afgifte-elementen'!$D$10:$D$81,$A5,'Selectie afgifte-elementen'!$G$10:$G$81) -> 0.9718011021 | K5: =IFERROR(VLOOKUP(J5,kringtemperatuur,2,0),0) -> 0 | L5: =IFERROR(VLOOKUP(J5,kringtemperatuur,3,0),0) -> 0 | S5: =IFERROR(MIN((buitentemperatuur*O5+P5*(1-O5))+MIN(M5:N5)*T5*(P5-buitentemperatuur)*O5/M5+SUM(U5:V5)*1000/M5/0.34,R5),"") ->  | W5: =IFERROR(0.34*M5*(R5-Q5)*3600/($K5-$L5)/4186/1000,0) -> 0 | X5: =IF(S5<>"",S5=R5,"") -> 
D6: =SUMIF($J$4:$J$12,$A6,$W$4:$W$12)+SUMIF('Selectie afgifte-elementen'!$D$10:$D$81,$A6,'Selectie afgifte-elementen'!$G$10:$G$81) -> 0 | K6: 0 | L6: 0 | W6: =IFERROR(0.34*M6*(R6-Q6)*3600/($K6-$L6)/4186/1000,0) -> 0 | X6: =IF(S6<>"",S6=R6,"") -> 
D7: =SUMIF($J$4:$J$12,$A7,$W$4:$W$12)+SUMIF('Selectie afgifte-elementen'!$D$10:$D$81,$A7,'Selectie afgifte-elementen'!$G$10:$G$81) -> 0 | K7: 0 | L7: 0 | W7: =IFERROR(0.34*M7*(R7-Q7)*3600/($K7-$L7)/4186/1000,0) -> 0
D8: =SUMIF($J$4:$J$12,$A8,$W$4:$W$12)+SUMIF('Selectie afgifte-elementen'!$D$10:$D$81,$A8,'Selectie afgifte-elementen'!$G$10:$G$81) -> 0 | K8: 0 | L8: 0 | W8: 0
D9: =SUMIF($J$4:$J$12,$A9,$W$4:$W$12)+SUMIF('Selectie afgifte-elementen'!$D$10:$D$81,$A9,'Selectie afgifte-elementen'!$G$10:$G$81) -> 0 | K9: 0 | L9: 0 | W9: 0
D10: =SUMIF($J$4:$J$12,$A10,$W$4:$W$12)+SUMIF('Selectie afgifte-elementen'!$D$10:$D$81,$A10,'Selectie afgifte-elementen'!$G$10:$G$81) -> 0 | K10: 0 | L10: 0 | W10: 0
D11: =SUMIF($J$4:$J$12,$A11,$W$4:$W$12)+SUMIF('Selectie afgifte-elementen'!$D$10:$D$81,$A11,'Selectie afgifte-elementen'!$G$10:$G$81) -> 0 | K11: 0 | L11: 0 | W11: 0
D12: =SUMIF($J$4:$J$12,$A12,$W$4:$W$12)+SUMIF('Selectie afgifte-elementen'!$D$10:$D$81,$A12,'Selectie afgifte-elementen'!$G$10:$G$81) -> 0 | K12: 0 | L12: 0 | W12: 0
D13: =SUMIF($J$4:$J$12,$A13,$W$4:$W$12)+SUMIF('Selectie afgifte-elementen'!$D$10:$D$81,$A13,'Selectie afgifte-elementen'!$G$10:$G$81) -> 0
D14: =SUMIF($J$4:$J$12,$A14,$W$4:$W$12)+SUMIF('Selectie afgifte-elementen'!$D$10:$D$81,$A14,'Selectie afgifte-elementen'!$G$10:$G$81) -> 0
D15: =SUMIF($J$4:$J$12,$A15,$W$4:$W$12)+SUMIF('Selectie afgifte-elementen'!$D$10:$D$81,$A15,'Selectie afgifte-elementen'!$G$10:$G$81) -> 0
A16: kring andere dan CV

Sheet info
D3: type afgifteelement | G3: Uitzonderingen: | I3: Lokaal
D4: radiator | G4: lokaal niet voor menselijke bezetting | I4: Luchtgroep
D5: convector | G5: vermogen < 10W/m² | I5: Luchtgroep met lokale naverwarming
D6: vloerverwarming | G6: plaatselijke verwarming andere dan CV
G7: ja
D8: luchtverwarming
D9: betonkernactivering
D10: directe ingave
I11: Berekening retourtemperatuur niet OK
